fUSD/lending_fUSD_20260214
["ID","MTS","AMOUNT","RATE_DAILY","PERIOD"]
[405362402,1771091440120,-7158.67915134,0.00026824,2]
[405362403,1771091440129,-288.03522424,0.00026824,2]
[405362404,1771091440139,-200.0,0.00026902,2]
[405362405,1771091440148,-166.66,0.00027149,2]
[405362406,1771091440158,-150.0,0.00027185,2]
[405362407,1771091440167,-841.0,0.00027334,3]
[405362408,1771091440176,-256.75,0.00027397,2]
[405362409,1771091440185,-1341.34,0.00027397,30]
[405362410,1771091440195,-500.0,0.00027397,20]
[405362411,1771091440204,-25000.0,0.00027418,7]
[405362412,1771091440213,-8161.85669451,0.00027426,7]
[405362413,1771091440220,-158.3,0.00027585,2]
[405362414,1771091440229,-155.1,0.00027664,2]
[405362415,1771091440237,-2464.29,0.00027701,2]
[405362416,1771091440244,-199.9,0.00027721,2]
[405362417,1771091440252,-841.0,0.00027931,3]
[405362418,1771091440259,-169.5,0.00028026,2]
[405362419,1771091440267,-699.622,0.00028102,18]
[405362420,1771091440276,-166.66,0.00028225,2]
[405362421,1771091440285,-150.0,0.00028544,2]
[405362422,1771091440295,-2840.0,0.00028579,3]
[405362423,1771091440304,-158.3,0.00028839,2]
[405362424,1771091440313,-1000.0,0.00029009,2]
[405362425,1771091440322,-151.0,0.00029106,7]
[405362426,1771091440331,-7158.67915134,0.00029111,2]
[405362427,1771091440340,-288.03522424,0.00029111,2]
[405362428,1771091440350,-1252.91110801,0.00029119,10]
[405362429,1771091440359,-166.66,0.00029245,2]
[405362430,1771091440369,-166.66,0.00029301,2]
[405362431,1771091440380,-500.0,0.00029302,2]
[405362432,1771091440390,-250.0,0.00029302,2]
[405362433,1771091440400,-500.0,0.00029302,2]
[405362434,1771091440410,-500.0,0.00029302,2]
[405362435,1771091440419,-500.0,0.00029302,2]
[405362436,1771091440428,-250.0,0.00029302,2]
[405362437,1771091440438,-556.51652932,0.00029302,2]
[405362438,1771091440447,-500.0,0.00029302,2]
[405362439,1771091440456,-250.0,0.00029302,2]
[405362440,1771091440466,-500.0,0.00029302,2]
[405362441,1771091440475,-500.0,0.00029302,2]
[405362442,1771091440484,-500.0,0.00029302,2]
[405362443,1771091440493,-250.0,0.00029302,2]
[405362444,1771091440503,-500.0,0.00029302,2]
[405362445,1771091440513,-527.19404983,0.00029302,2]
[405362446,1771091440522,-250.0,0.00029302,2]
[405362447,1771091440531,-500.0,0.00029302,2]
[405362448,1771091440540,-250.0,0.00029302,2]
[405362449,1771091440550,-500.0,0.00029302,2]
[405362450,1771091440559,-250.0,0.00029302,2]
[405362451,1771091440568,-500.0,0.00029302,2]
[405362452,1771091440578,-250.0,0.00029302,2]
[405362453,1771091440587,-500.0,0.00029302,2]
[405362454,1771091440596,-250.0,0.00029302,2]
[405362455,1771091440605,-255.82247405,0.00029302,2]
[405362456,1771091440614,-250.0,0.00029302,2]
[405362457,1771091440624,-500.0,0.00029302,2]
[405362458,1771091440634,-250.0,0.00029302,2]
[405362459,1771091440643,-500.0,0.00029302,2]
[405362460,1771091440653,-250.0,0.00029302,2]
[405362461,1771091440662,-518.34982686,0.00029302,2]
[405362462,1771091440671,-250.0,0.00029302,2]
[405362463,1771091440680,-250.0,0.00029302,2]
[405362464,1771091440689,-250.0,0.00029302,2]
[405362465,1771091440702,-254.7033917,0.00029302,2]
[405362466,1771091440722,-250.0,0.00029302,2]
[405362467,1771091440739,-250.0,0.00029302,2]
[405362468,1771091440758,-250.0,0.00029302,2]
[405362469,1771091440776,-250.0,0.00029302,2]
[405362470,1771091440792,-202.22637079,0.00029302,2]
[405362471,1771091440809,-269.20568524,0.00029302,2]
[405362472,1771091440830,-239.84119403,0.00029302,2]
[405362473,1771091440847,-500.0,0.00029302,2]
[405362474,1771091440866,-500.0,0.00029302,2]
[405362475,1771091440882,-210.07340461,0.00029302,2]
[405362476,1771091440900,-199.9,0.00029337,2]
[405362477,1771091440913,-312.52009233,0.00029452,30]
[405362478,1771091440931,-312.52009233,0.00029562,30]
[405362479,1771091440944,-312.52009233,0.00029671,30]
[405362480,1771091440959,-312.52009233,0.00029808,30]
[405362481,1771091440974,-248.71531821,0.0002985,2]
[405362482,1771091440988,-312.52009233,0.00029918,30]
[405362483,1771091441005,-400.0,0.0002997,2]
[405362484,1771091441020,-395.44546503,0.0003,2]
[405362485,1771091441035,-312.52009233,0.00030027,30]
[405362486,1771091441049,-158.3,0.00030093,2]
[405362487,1771091441063,-313.74,0.00030137,2]
[405362488,1771091441077,-312.52009233,0.00030164,30]
[405362489,1771091441092,-312.52009233,0.00030274,30]
[405362490,1771091441107,-323.300548,0.00030293,30]
[405362491,1771091441122,-166.66,0.00030377,2]
[405362492,1771091441137,-312.52009233,0.00030384,30]
[405362493,1771091441151,-257.91778498,0.00030398,2]
[405362494,1771091441167,-312.52009233,0.00030521,30]
[405362495,1771091441181,-312.52009233,0.0003063,30]
[405362496,1771091441196,-312.52009233,0.0003074,30]
[405362497,1771091441210,-169.5,0.00030829,2]
[405362498,1771091441224,-199.9,0.00030953,2]
[405362499,1771091441239,-1341.34,0.0003105,30]
[405362500,1771091441253,-199.39994483,0.0003105,19]
[405362501,1771091441267,-510.0,0.000312,13]
[405362502,1771091441288,-7158.67915134,0.00031397,2]
[405362503,1771091441306,-288.03522424,0.00031397,2]
[405362504,1771091441323,-1000.0,0.00031555,2]
[405362505,1771091441339,-500.0,0.00032056,14]
[405362506,1771091441355,-817.0,0.00032163,3]
[405362507,1771091441371,-199.9,0.00032569,2]
[405362508,1771091441387,-1354.71975872,0.00032612,2]
[405362509,1771091441402,-394.40161693,0.00032612,3]
[405362510,1771091441416,-313.74,0.00032877,2]
[405362511,1771091441431,-150.0,0.00032899,20]
[405362512,1771091441447,-1850.15,0.00032899,9]
[405362513,1771091441461,-4088.82,0.000329,14]
[405362514,1771091441477,-197424.83,0.000329,14]
[405362515,1771091441491,-500.0,0.00033,30]
[405362516,1771091441506,-150.0,0.00033,14]
[405362517,1771091441520,-5000.0,0.00033,7]
[405362518,1771091441535,-5000.0,0.00033,2]
[405362519,1771091441550,-2962.0,0.00033059,11]
[405362520,1771091441565,-1000.0,0.00033113,7]
[405362521,1771091441579,-400.0,0.0003317,2]
[405362522,1771091441594,-151.0,0.00033216,30]
[405362523,1771091441608,-174.7732489,0.00033285,10]
[405362524,1771091441622,-200.0,0.00033352,10]
[405362525,1771091441637,-1000.0,0.00033387,7]
[405362526,1771091441652,-151.0,0.00033615,30]
[405362527,1771091441667,-169.5,0.00033631,2]
[405362528,1771091441680,-1000.0,0.00033661,7]
[405362529,1771091441695,-400.0,0.0003367,2]
[405362530,1771091441710,-7158.67915134,0.00033683,2]
[405362531,1771091441724,-288.03522424,0.00033683,2]
[405362532,1771091441738,-300.0,0.00033695,14]
[405362533,1771091441752,-500.0,0.000337,14]
[405362534,1771091441767,-674.9556431,0.000337,2]
[405362535,1771091441785,-364.97922255,0.000337,2]
[405362536,1771091441800,-1663.15,0.000338,120]
[405362537,1771091441814,-152.0,0.00033867,3]
[405362538,1771091441828,-600.0,0.000339,12]
[405362539,1771091441842,-151.0,0.00033923,30]
[405362540,1771091441857,-1000.0,0.00033935,7]
[405362541,1771091441871,-150.1,0.00033963,3]
[405362542,1771091441885,-195.664605,0.00033963,3]
[405362543,1771091441902,-1067.645859,0.00034008,60]
[405362544,1771091441911,-1000.0,0.00034078,2]
[405362545,1771091441920,-1000.0,0.00034078,2]
[405362546,1771091441929,-1000.0,0.00034078,2]
[405362547,1771091442143,-1000.0,0.00034078,2]
[405362548,1771091442169,-1000.0,0.00034078,2]
[405362549,1771091442183,-1850.15,0.00034099,9]
[405362550,1771091442193,-4088.82,0.000341,14]
[405362551,1771091442202,-182462.08673427,0.000341,14]
[405362552,1771091442215,-1737.3,0.000341,14]
[405362554,1771091443501,-412.0,0.00028536,2]
[405362555,1771091443511,-13225.44326573,0.000341,14]
[405362556,1771091443520,-1000.0,0.000341,2]
[405362557,1771091443530,-316.49894,0.000341,2]
[405362558,1771091443539,-199.9,0.00034184,5]
[405362560,1771091443549,-1000.0,0.00034208,7]
[405362562,1771091443558,-1000.0,0.00034482,7]
[405362564,1771091443567,-1735.24974393,0.0003449,2]
[405362565,1771091443577,-234.98984548,0.000347,2]
[405362566,1771091443587,-1341.34,0.00034703,30]
[405362567,1771091443597,-1000.0,0.00034756,7]
[405362568,1771091443606,-1500.0,0.00034795,2]
[405362569,1771091443615,-1850.15,0.00034899,9]
[405362570,1771091443625,-1850.15,0.00034899,9]
[405362571,1771091443634,-180224.9552541,0.000349,4]
[405362572,1771091443643,-4088.82,0.000349,14]
[405362573,1771091443652,-197424.83,0.000349,14]
[405362574,1771091443662,-1850.15,0.00034999,9]
[405362575,1771091443671,-181507.06949405,0.00035,4]
[405362576,1771091443680,-2000.0,0.00035,30]
[405362577,1771091443689,-500.8,0.00035,30]
[405362578,1771091443700,-1000.0,0.00035,2]
[405362579,1771091443709,-36693.82961981,0.00035,4]
[405362580,1771091443718,-150.0,0.00035,2]
[405362581,1771091443728,-14031.0351672,0.00035,2]
[405362582,1771091443737,-1921.52364431,0.00035,2]
[405362583,1771091443747,-801.51954067,0.00035,2]
[405362584,1771091443756,-5000.0,0.00035,7]
[405362585,1771091443766,-1000.0,0.0003503,7]
[405362586,1771091443778,-151.0,0.00035061,30]
[405362587,1771091443788,-153.52040876,0.00035084,2]
[405362588,1771091443797,-200.0,0.00035196,2]
[405362589,1771091443806,-200.0,0.00035196,2]
[405362590,1771091443816,-200.0,0.00035196,2]
[405362591,1771091443825,-200.0,0.00035196,2]
[405362592,1771091443834,-200.0,0.00035196,2]
[405362593,1771091443844,-200.0,0.00035196,2]
[405362594,1771091443853,-200.0,0.00035196,2]
[405362595,1771091443863,-200.0,0.00035196,2]
[405362596,1771091443871,-200.0,0.00035196,2]
[405362597,1771091443880,-200.0,0.00035196,2]
[405362598,1771091443890,-200.0,0.00035196,2]
[405362599,1771091443899,-200.0,0.00035196,2]
[405362600,1771091443908,-200.0,0.00035196,2]
[405362601,1771091443918,-200.0,0.00035196,2]
[405362602,1771091443927,-200.0,0.00035196,2]
[405362603,1771091443936,-200.0,0.00035196,2]
[405362604,1771091443945,-200.0,0.00035196,2]
[405362605,1771091443954,-200.0,0.00035196,2]
[405362606,1771091443963,-200.0,0.00035196,2]
[405362607,1771091443972,-200.0,0.00035196,2]
[405362608,1771091443981,-200.0,0.00035196,2]
[405362609,1771091443990,-200.0,0.00035196,2]
[405362610,1771091443999,-200.0,0.00035196,2]
[405362611,1771091444008,-202.0,0.00035196,2]
[405362612,1771091444017,-800.0,0.00035196,13]
[405362613,1771091444026,-800.0,0.00035196,13]
[405362614,1771091444036,-800.0,0.00035196,13]
[405362615,1771091444045,-800.0,0.00035196,13]
[405362616,1771091444054,-800.0,0.00035196,13]
[405362617,1771091444063,-200.0,0.00035196,2]
[405362618,1771091444072,-200.0,0.00035196,2]
[405362619,1771091444082,-200.0,0.00035196,2]
[405362620,1771091444092,-200.0,0.00035196,2]
[405362621,1771091444101,-200.0,0.00035196,2]
[405362622,1771091444110,-200.0,0.00035196,2]
[405362623,1771091444119,-200.0,0.00035196,2]
[405362624,1771091444128,-200.0,0.00035196,2]
[405362625,1771091444138,-200.0,0.00035196,2]
[405362626,1771091444147,-200.0,0.00035196,2]
[405362627,1771091444156,-200.0,0.00035196,2]
[405362628,1771091444165,-200.0,0.00035196,2]
[405362629,1771091444175,-217.0,0.00035196,2]
[405362630,1771091444185,-379.0,0.00035196,13]
[405362631,1771091444194,-1000.0,0.00035304,7]
[405362632,1771091444204,-500.0,0.00035344,14]
[405362633,1771091444213,-300.142017,0.00035428,74]
[405362634,1771091444223,-1000.0,0.00035499,2]
[405362635,1771091444232,-163.55907842,0.00035516,2]
[405362636,1771091444241,-152.05509589,0.00035516,8]
[405362637,1771091444251,-1000.0,0.00035578,7]
[405362638,1771091444261,-1850.15,0.00035609,9]
[405362639,1771091444270,-100021.86066542,0.0003561,2]
[405362640,1771091444280,-88620.36324848,0.0003561,2]
[405362641,1771091444292,-4273.67723231,0.0003561,2]
[405362642,1771091444331,-318.42925421,0.00025506,10]
[405362643,1771091444359,-209.57074579,0.00025506,10]
[405362644,1771091444368,-7113.26916766,0.0003561,2]
[405362650,1771091445978,-412.0,0.00031536,2]
[405362651,1771091445988,-412.0,0.00034536,2]
[405362652,1771091445997,-197.8750003,0.00035084,30]
[405362653,1771091446097,-66.1249997,0.00035084,30]
[405362654,1771091446107,-68198.27416052,0.0003561,2]
[405362655,1771091446116,-4441.82934233,0.0003561,2]
[405362656,1771091446126,-5000.0,0.0003561,2]
[405362657,1771091446135,-22845.36054305,0.00035616,7]
[405362658,1771091446147,-18422.97323103,0.00035616,7]
[405362659,1771091446156,-663.20840717,0.00035616,7]
[405362660,1771091446166,-2172.54072827,0.00035616,7]
[405362661,1771091446175,-12353.7601126,0.00035616,7]
[405362662,1771091446184,-12865.61924069,0.00035616,7]
[405362663,1771091446193,-313.74,0.00035616,2]
[405362664,1771091446203,-2000.0,0.00035621,3]
[405362665,1771091446212,-2000.0,0.00035621,3]
[405362666,1771091446221,-2000.0,0.00035621,3]
[405362667,1771091446231,-807.2004,0.00035621,3]
[405362669,1771091446240,-533.13798421,0.000357,30]
[405362670,1771091446250,-3812.02423632,0.000357,2]
[405362672,1771091446488,-509.23295881,0.000357,2]
[405362673,1771091446504,-1613.6,0.000357,2]
[405362674,1771091446515,-4065.14280487,0.000357,2]
[405362675,1771091446525,-500.0,0.0003577,2]
[405362676,1771091446535,-400.0,0.0003577,2]
[405362677,1771091446544,-150.0,0.00035773,5]
[405362678,1771091446553,-301.59103055,0.00035773,5]
[405362679,1771091446562,-1850.15,0.00035799,9]
[405362680,1771091446572,-156.99787,0.000358,120]
[405362681,1771091446583,-150.0,0.000358,2]
[405362682,1771091446593,-150.0,0.000358,2]
[405362683,1771091446602,-199.9,0.000358,7]
[405362684,1771091446611,-898.96639024,0.000358,14]
[405362685,1771091446689,-297.0,0.0003561,30]
[405362686,1771091446865,-3189.85360976,0.000358,14]
[405362687,1771091446875,-2436.5528393,0.000358,14]
[405362689,1771091446978,-1808.90394049,0.000358,14]
[405362943,1771092571116,-250.0,0.00015,2]
[405362944,1771092571141,-158.41,0.00015,2]
[405362950,1771092632097,-764.428,0.00016454,2]
[405362951,1771092632108,-170.65746582,0.0001659,2]
[405362952,1771092632119,-300.0,0.00016687,2]
[405362953,1771092632130,-1200.0,0.00016687,2]
[405362954,1771092632141,-500.0,0.00016688,2]
[405362955,1771092632151,-319.07783769,0.00016688,2]
[405362956,1771092632162,-295.58467628,0.00016688,2]
[405362957,1771092632172,-500.0,0.00016688,2]
[405362958,1771092632183,-500.0,0.00016688,2]
[405362959,1771092632194,-500.0,0.00016688,2]
[405362960,1771092632204,-500.0,0.00016688,2]
[405362961,1771092632218,-500.0,0.00016688,2]
[405362962,1771092632229,-500.0,0.00016688,2]
[405362963,1771092632240,-500.0,0.00016688,2]
[405362964,1771092632251,-500.0,0.00016688,2]
[405362966,1771092632260,-500.0,0.00016688,2]
[405362968,1771092632269,-500.0,0.00016688,2]
[405362970,1771092632279,-500.0,0.00016688,2]
[405362972,1771092632288,-500.0,0.00016688,2]
[405362974,1771092632297,-500.0,0.00016688,2]
[405362976,1771092632306,-500.0,0.00016688,2]
[405362978,1771092632315,-500.0,0.00016688,2]
[405362980,1771092632324,-500.0,0.00016688,2]
[405362982,1771092632333,-500.0,0.00016688,2]
[405362984,1771092632343,-500.0,0.00016688,2]
[405362986,1771092632352,-500.0,0.00016688,2]
[405362988,1771092632361,-500.0,0.00016688,2]
[405362991,1771092632371,-500.0,0.00016688,2]
[405362993,1771092632382,-500.0,0.00016688,2]
[405362995,1771092632391,-500.0,0.00016688,2]
[405362996,1771092632402,-500.0,0.00016688,2]
[405362998,1771092632411,-500.0,0.00016688,2]
[405363000,1771092632421,-500.0,0.00016688,2]
[405363002,1771092632430,-500.0,0.00016688,2]
[405363004,1771092632440,-500.0,0.00016688,2]
[405363005,1771092632449,-500.0,0.00016688,2]
[405363006,1771092632458,-500.0,0.00016688,2]
[405363008,1771092632467,-500.0,0.00016688,2]
[405363010,1771092632475,-500.0,0.00016688,2]
[405363012,1771092632484,-500.0,0.00016688,2]
[405363013,1771092632495,-500.0,0.00016688,2]
[405363014,1771092632505,-500.0,0.00016688,2]
[405363015,1771092632514,-500.0,0.00016688,2]
[405363016,1771092632524,-500.0,0.00016688,2]
[405363017,1771092632534,-500.0,0.00016688,2]
[405363018,1771092632543,-500.0,0.00016688,2]
[405363019,1771092632553,-500.0,0.00016688,2]
[405363020,1771092632563,-500.0,0.00016688,2]
[405363021,1771092632579,-500.0,0.00016688,2]
[405363022,1771092632590,-500.0,0.00016688,2]
[405363023,1771092632600,-500.0,0.00016688,2]
[405363024,1771092632613,-500.0,0.00016688,2]
[405363025,1771092632623,-500.0,0.00016688,2]
[405363026,1771092632633,-500.0,0.00016688,2]
[405363027,1771092632642,-284.40157374,0.00016688,2]
[405363028,1771092632653,-500.0,0.00016688,2]
[405363029,1771092632665,-500.0,0.00016688,2]
[405363030,1771092632676,-500.0,0.00016688,2]
[405363031,1771092632686,-500.0,0.00016688,2]
[405363032,1771092632696,-500.0,0.00016688,2]
[405363033,1771092632708,-278.23922901,0.00016688,2]
[405363034,1771092632718,-500.0,0.00016688,2]
[405363035,1771092632727,-500.0,0.00016688,2]
[405363036,1771092632737,-373.21343186,0.00016688,2]
[405363037,1771092632748,-500.0,0.00016688,2]
[405363038,1771092632758,-500.0,0.00016688,2]
[405363039,1771092632769,-500.0,0.00016688,2]
[405363040,1771092632781,-600.0,0.00016688,2]
[405363041,1771092632794,-500.0,0.00016688,2]
[405363042,1771092632805,-500.0,0.00016688,2]
[405363043,1771092632815,-500.0,0.00016688,2]
[405363044,1771092632825,-500.0,0.00016688,2]
[405363045,1771092632835,-500.0,0.00016688,2]
[405363046,1771092632845,-500.0,0.00016688,2]
[405363047,1771092632856,-500.0,0.00016688,2]
[405363048,1771092632867,-500.0,0.00016688,2]
[405363049,1771092632878,-500.0,0.00016688,2]
[405363050,1771092632887,-500.0,0.00016688,2]
[405363051,1771092632898,-500.0,0.00016688,2]
[405363052,1771092632909,-500.0,0.00016688,2]
[405363053,1771092632919,-1200.0,0.00016688,2]
[405363054,1771092632930,-275.0,0.00016688,2]
[405363055,1771092632939,-631199.84458163,0.00016689,2]
[405363056,1771092632953,-64211.51540485,0.00016689,2]
[405363057,1771092632980,-439.31811681,0.00016689,2]
[405363063,1771092638095,-30483.03257909,0.00016689,2]
[405363064,1771092638149,-30733.86312858,0.00016689,2]
[405363073,1771092640169,-934195.18048904,0.00016689,2]
[405363074,1771092640193,-534.36493014,0.0001669,2]
[405363075,1771092640219,-151.0,0.0001678,2]
[405363076,1771092640236,-151.0,0.0001678,2]
[405363077,1771092640256,-151.0,0.0001678,2]
[405363078,1771092640270,-151.0,0.0001678,2]
[405363079,1771092640287,-151.0,0.0001678,2]
[405363080,1771092640305,-151.0,0.0001678,2]
[405363081,1771092640331,-151.0,0.0001678,2]
[405363082,1771092640349,-151.0,0.0001678,2]
[405363083,1771092640368,-151.0,0.0001678,2]
[405363084,1771092640386,-151.0,0.0001678,2]
[405363085,1771092640403,-151.0,0.0001678,2]
[405363086,1771092640419,-151.0,0.0001678,2]
[405363087,1771092640441,-151.0,0.0001678,2]
[405363088,1771092640457,-151.0,0.0001678,2]
[405363089,1771092640473,-151.0,0.0001678,2]
[405363090,1771092640495,-151.0,0.0001678,2]
[405363091,1771092640510,-151.0,0.0001678,2]
[405363092,1771092640529,-151.0,0.0001678,2]
[405363093,1771092640547,-151.0,0.0001678,2]
[405363094,1771092640570,-151.0,0.0001678,2]
[405363095,1771092640593,-32240.35566306,0.0001678,2]
[405363096,1771092640617,-4295.20749084,0.000168,2]
[405363097,1771092640636,-65235.91172746,0.000169,2]
[405363098,1771092640657,-163.55907842,0.0001749,2]
[405363099,1771092640676,-152.05509589,0.0001749,2]
[405363100,1771092640702,-1000.0,0.0001759,2]
[405363101,1771092640720,-1079.25,0.00017689,2]
[405363102,1771092640742,-1079.25,0.00017689,2]
[405363103,1771092640764,-1079.25,0.00017689,2]
[405363104,1771092640780,-1079.25,0.00017689,2]
[405363105,1771092640798,-500.0,0.00017808,2]
[405363106,1771092640816,-302.52851623,0.00017808,2]
[405363107,1771092640834,-534.36493009,0.00018981,2]
[405363108,1771092640852,-510.0,0.00019,2]
[405363109,1771092640873,-4295.2074908,0.00019079,2]
[405363110,1771092640893,-534.36493009,0.00021272,2]
[405363111,1771092640915,-4295.2074908,0.00021357,2]
[405363112,1771092640933,-1079.25,0.00022535,2]
[405363113,1771092640953,-299.99,0.00023368,7]
[405363114,1771092640972,-9999.99,0.00023368,2]
[405363115,1771092640996,-515.45,0.00023368,2]
[405363116,1771092641018,-3834.41,0.00023368,2]
[405363117,1771092641034,-9999.99,0.00023368,2]
[405363118,1771092641052,-3208.15,0.00023368,2]
[405363119,1771092641072,-1343.33,0.00023368,2]
[405363120,1771092641097,-6254.23,0.00023368,2]
[405363121,1771092641117,-175761.53,0.000234,2]
[405363122,1771092641135,-534.36493009,0.00023562,2]
[405363123,1771092641154,-412.0,0.00023625,2]
[405363124,1771092641170,-4295.2074908,0.00023636,2]
[405363125,1771092641185,-1237.477,0.00023904,2]
[405363126,1771092641199,-8677.14,0.00024174,2]
[405363127,1771092641216,-23720.35,0.00024174,2]
[405363128,1771092641235,-150.0,0.00024658,2]
[405363129,1771092641253,-323.300548,0.00025035,30]
[405363130,1771092641269,-320.293758,0.00025376,30]
[405363131,1771092641287,-163.55907842,0.00025416,2]
[405363132,1771092641306,-255.0,0.00025479,10]
[405363133,1771092641324,-534.36493009,0.00025853,2]
[405363134,1771092641340,-150.0,0.0002589,2]
[405363135,1771092641357,-4295.2074908,0.00025914,2]
[405363136,1771092641377,-412.0,0.00026625,2]
[405363137,1771092641395,-510.0,0.00026625,9]
[405363138,1771092641412,-175761.53,0.00027,2]
[405363139,1771092641427,-150.0,0.00027185,2]
[405363140,1771092641448,-1257.5,0.00027397,30]
[405363141,1771092641462,-500.0,0.00027397,20]
[405363142,1771092641474,-841.0,0.00027464,3]
[405363143,1771092641485,-151.0,0.00027778,2]
[405363144,1771092641495,-534.36493009,0.00028144,2]
[405363145,1771092641726,-4295.2074908,0.00028193,2]
[405363146,1771092641758,-152.05509589,0.00028645,2]
[405363147,1771092641775,-150.0,0.00029028,2]
[405363148,1771092641785,-500.0,0.00029265,2]
[405363149,1771092641795,-500.0,0.00029265,2]
[405363150,1771092641805,-500.0,0.00029265,2]
[405363151,1771092641815,-500.0,0.00029265,2]
[405363152,1771092641824,-500.0,0.00029265,2]
[405363153,1771092641835,-500.0,0.00029265,2]
[405363154,1771092641846,-500.0,0.00029265,2]
[405363155,1771092641856,-500.0,0.00029265,2]
[405363156,1771092641867,-500.0,0.00029265,2]
[405363157,1771092641878,-500.0,0.00029265,2]
[405363158,1771092641889,-518.34982686,0.00029265,2]
[405363159,1771092641898,-151.0,0.00029382,2]
[405363160,1771092641910,-256.75,0.00029577,2]
[405363161,1771092641919,-25000.0,0.00029736,10]
[405363162,1771092641929,-25000.0,0.00029982,10]
[405363163,1771092641939,-25000.0,0.00029991,10]
[405363164,1771092641949,-151.0,0.00029997,7]
[405363165,1771092641958,-25000.0,0.0003,10]
[405363166,1771092641968,-9414.76780252,0.0003,10]
[405363167,1771092641979,-86131.58179478,0.0003,2]
[405363168,1771092642053,-266.4444184,0.0003,2]
[405363169,1771092642066,-89363.50378682,0.0003,2]
[405363170,1771092642079,-302.0,0.000302,2]
[405363171,1771092642090,-309.0,0.000302,2]
[405363172,1771092642101,-166.66,0.0003026,2]
[405363173,1771092642110,-534.36493009,0.00030435,2]
[405363174,1771092642122,-4295.2074908,0.00030471,2]
[405363175,1771092642133,-500.0,0.00030667,2]
[405363176,1771092642144,-1000.0,0.0003067,2]
[405363177,1771092642156,-151.0,0.00030987,2]
[405363178,1771092642168,-1257.5,0.0003105,30]
[405363179,1771092642178,-166.66,0.00031259,2]
[405363180,1771092642188,-312.52009233,0.00032137,30]
[405363181,1771092642199,-166.66,0.00032257,2]
[405363182,1771092642211,-312.52009233,0.00032274,30]
[405363183,1771092642220,-312.52009233,0.00032384,30]
[405363184,1771092642230,-312.52009233,0.00032521,30]
[405363185,1771092642239,-151.0,0.00032591,2]
[405363186,1771092642249,-253.07725946,0.00032625,2]
[405363187,1771092642258,-312.52009233,0.00032658,30]
[405363188,1771092642268,-175761.53,0.000327,2]
[405363189,1771092642277,-534.36493009,0.00032725,2]
[405363190,1771092642287,-4295.2074908,0.0003275,2]
[405363191,1771092642296,-312.52009233,0.00032795,30]
[405363192,1771092642306,-150.0,0.00032899,20]
[405363193,1771092642315,-1079.25,0.00032899,9]
[405363194,1771092642324,-2767.98,0.000329,2]
[405363195,1771092642334,-312.52009233,0.00032904,30]
[405363196,1771092642343,-841.0,0.0003292,11]
[405363197,1771092642353,-150.0,0.00033,14]
[405363198,1771092642363,-2862.17,0.00033,14]
[405363199,1771092642372,-312.52009233,0.00033041,30]
[405363200,1771092642381,-312.52009233,0.00033178,30]
[405363201,1771092642390,-2970.0,0.00033213,11]
[405363202,1771092642401,-166.66,0.00033256,2]
[405363203,1771092642412,-312.52009233,0.00033288,30]
[405363204,1771092642423,-163.55907842,0.00033343,2]
[405363205,1771092642432,-754.367945,0.0003338,60]
[405363206,1771092642442,-312.52009233,0.00033425,30]
[405363207,1771092642452,-312.52009233,0.00033562,30]